bitfinex/quotes_SOLUSD_20250226
["timestamp","ask_amount","ask_price","bid_price","bid_amount"]
[1740600967383,35.77650912,132.07,132.01,0.14216157]
[1740600967706,35.77650912,132.07,131.97,20.62173732]
[1740600967914,35.85002441,132.07,131.97,102.09525261]
[1740600968279,15.33278962,132.06,132.0,20.0]
[1740600968901,15.33278962,132.06,132.0,122.09525261]
[1740600969311,15.33278962,132.06,132.01,0.42648471]
[1740600969600,89.55769425,132.07,132.05,0.14216157]
[1740600969801,135.53175049,132.07,132.05,102.52173732]
[1740600970399,135.53175049,132.07,132.05,102.09525261]
[1740600970780,45.97405624,132.06,132.05,102.52173732]
[1740600970978,20.97405624,132.06,132.05,102.66389889]
[1740600971210,69.11397475,132.12,132.09,0.42648471]
[1740600971379,69.11397475,132.12,132.11,20.42648471]
[1740600971586,53.89853285,132.12,132.11,123.5903836]
[1740600971805,39.5943734,132.12,132.11,122.66389889]
[1740600971994,36.2715734,132.12,132.11,122.09525261]
[1740600972197,36.2715734,132.12,132.11,122.66389889]
[1740600972387,36.2715734,132.12,132.11,123.5903836]
[1740600972594,391.33410053,132.18,132.13,0.14216157]
[1740600972795,391.33410053,132.18,132.16,20.0]
[1740600972986,388.44390053,132.18,132.17,0.42648471]
[1740600973182,244.99128088,132.18,132.17,103.66389889]
[1740600973382,146.84099829,132.18,132.17,127.4103836]
[1740600973587,106.44830058,132.18,132.17,109.30278526]
[1740600973807,91.24751109,132.18,132.17,245.10278526]
[1740600974008,91.24751109,132.18,132.17,219.76864628]
[1740600974207,91.24751109,132.18,132.17,219.2]
[1740600974398,9.67500078,132.18,132.17,257.14496503]
[1740600974601,0.063,132.2,132.18,37.8254]
[1740600974807,0.063,132.2,132.19,103.20512395]
[1740600975017,0.063,132.2,132.19,240.00512395]
[1740600975213,0.063,132.2,132.19,347.15160866]
[1740600975584,0.063,132.2,132.19,323.33160866]
[1740600975884,0.063,132.2,132.17,37.94496503]
[1740600976313,0.063,132.2,132.19,57.33647767]
[1740600976510,10.58,132.27,132.19,57.33647767]
[1740600976713,0.14216157,132.26,132.15,37.57915072]
[1740600976911,10.58,132.27,132.17,37.94496503]
[1740600977211,0.14216157,132.26,132.15,37.57915072]
[1740600977413,53.50666181,132.26,132.15,37.57915072]
[1740600977802,53.50666181,132.26,132.23,3.06894547]
[1740600978106,0.14216157,132.24,132.21,9.53439094]
[1740600978320,0.14216157,132.22,132.17,37.94496503]
[1740600978504,0.14216157,132.2,132.16,53.08116046]
[1740600978812,0.14216157,132.18,132.16,53.08116046]
[1740600979013,0.14216157,132.18,132.16,15.13498455]
[1740600979219,53.36450024,132.19,132.16,15.13498455]
[1740600979410,53.36450024,132.23,132.19,20.0]
[1740600979928,53.64882338,132.22,132.16,15.13498455]
[1740600980219,53.64882338,132.22,132.12,37.404808]
[1740600980220,4.00261852,132.2,132.17,5.04499485]
[1740600980421,10.56,132.23,132.15,37.57915072]
[1740600981000,10.54,132.27,132.15,37.57915072]
[1740600981224,82.9,132.26,132.16,37.94617591]
[1740600981537,82.9,132.26,132.19,20.0]
[1740600981701,10.54,132.31,132.19,57.33647767]
[1740600981702,18.04669034,132.25,132.19,57.33647767]
[1740600981901,18.04669034,132.3,132.21,20.0]
[1740600982228,3.83023945,132.27,132.21,20.0]
[1740600982436,3.77132438,132.28,132.2,20.0]
[1740600983807,28.56669034,132.34,132.21,20.0]
[1740600984012,3.88649383,132.3,132.23,20.0]
[1740600984209,0.14216157,132.28,132.23,20.0]
[1740600984419,0.14216157,132.28,132.19,20.0]
[1740600984618,0.14216157,132.28,132.19,21.0]
[1740600984819,0.14216157,132.28,132.2,1.0]
[1740600985005,118.87556254,132.32,132.2,1.0]
[1740600985205,3.84208409,132.29,132.19,239.2]
[1740600985526,3.76001426,132.25,132.16,1.0]
[1740600985732,3.76001426,132.25,132.13,37.23704708]
[1740600985912,82.9,132.24,132.12,37.404808]
[1740600986110,3.86412136,132.17,132.12,37.404808]
[1740600986308,82.9,132.23,132.14,1.0]
[1740600986509,3.33019826,132.2,132.12,38.404808]
[1740600986829,3.33019826,132.2,132.12,37.404808]
[1740600987132,2.84165983,132.2,132.12,37.404808]
[1740600987515,82.9,132.19,132.12,37.404808]
[1740600987714,82.9,132.18,132.12,37.404808]
[1740600987908,3.75697464,132.14,132.12,37.96028286]
[1740600988225,10.66,132.2,132.12,37.96028286]
[1740600988425,78.3857,132.19,132.12,37.96028286]
[1740600988632,84.7443,132.22,132.12,37.96028286]
[1740600988805,78.3857,132.18,132.11,0.03]
[1740600989006,78.3857,132.17,132.11,0.03]
[1740600989233,20.0,132.13,132.05,0.03]
[1740600989410,212.3052,132.12,132.06,37.04881138]
[1740600989607,73.7052,132.11,132.06,37.04881138]
[1740600989806,1.36863996,132.11,132.04,37.41485401]
[1740600990029,73.7052,132.14,132.04,38.41485401]
[1740600990335,84.7052,132.13,131.98,37.64529249]
[1740600990506,73.7052,132.12,131.99,37.38957637]
[1740600990709,73.7052,132.11,131.95,12.98]
[1740600990909,73.7052,132.1,131.99,1.0]
[1740600991110,73.7052,132.09,131.98,2.0]
[1740600991329,127.66,132.1,131.99,1.0]
[1740600991521,127.66,132.1,132.01,2.0]
[1740600991726,127.66,132.1,132.04,1.0]
[1740600991925,6.3145,132.15,132.04,20.0]
[1740600992230,73.7052,132.14,132.06,1.0]
[1740600992527,175.98701301,132.18,132.07,1.0]
[1740600992734,127.66,132.18,132.09,2.0]
[1740600992921,127.66,132.18,132.09,1.0]
[1740600993122,164.90701301,132.18,132.08,20.0]
[1740600993330,0.14216157,132.17,132.04,1.0]
[1740600993527,0.14216157,132.15,132.06,1.0]
[1740600993918,73.7052,132.16,132.06,2.0]
[1740600994233,73.7052,132.16,132.01,236.7021]
[1740600994234,0.14216157,132.15,132.01,233.83368284]
[1740600994540,1.14216157,132.13,132.01,8.21158284]
[1740600995038,0.14216157,132.13,131.99,0.28432314]
[1740600995220,21.21107649,132.17,132.01,136.8]
[1740600995412,1.0,132.15,131.98,11.1]
[1740600995615,0.14216157,132.14,131.98,147.9]
[1740600995816,1.14216157,132.14,131.98,147.9]
[1740600996015,1.14216157,132.14,131.98,95.03377682]
[1740600996215,1.14216157,132.14,132.01,20.0]
[1740600996424,22.92132968,131.99,131.98,95.03377682]
[1740600996725,12.92152968,131.99,131.98,95.03377682]
[1740600996929,4.58832968,131.99,131.98,95.6024231]
[1740600997125,2.92172968,131.99,131.98,95.6024231]
[1740600997337,2.92172968,131.99,131.98,95.31809996]
[1740600997747,2.92172968,131.99,131.98,95.6024231]
[1740600997923,1.25512968,131.99,131.98,180.59259757]
[1740600998116,1.25512968,131.99,131.98,180.0024231]
[1740600998435,11.12,132.1,132.01,20.0]
[1740600998636,0.063,132.13,131.98,177.43377682]
[1740600998842,0.063,132.13,131.95,95.03377682]
[1740600998843,6.3465,132.11,131.95,95.03377682]
[1740600999012,1.0,132.1,131.94,132.76961823]
[1740600999218,1.595,132.08,131.91,37.40007598]
[1740600999534,1.0,132.05,131.89,37.1993838]
[1740600999840,20.0,131.99,131.86,37.77398933]
[1740601000041,0.14216157,131.95,131.86,37.77398933]
[1740601000217,1.595,131.96,131.95,20.0]
[1740601000413,1.595,131.96,131.88,37.99792979]
[1740601000721,1.595,131.96,131.86,37.77398933]
[1740601001028,1.0,131.94,131.86,37.77398933]
[1740601001349,0.14216157,131.93,131.75,106.93377682]
[1740601001835,1.14216157,131.93,131.75,108.52653385]
[1740601002042,0.14216157,131.88,131.75,95.03377682]
[1740601002241,0.14216157,131.88,131.72,37.53099729]
[1740601002242,2.66656157,131.87,131.72,37.53099729]
[1740601002440,129.92216157,131.86,131.67,37.06082156]
[1740601002616,0.14216157,131.81,131.67,95.03377682]
[1740601002816,1.66656157,131.79,131.65,1.0]
[1740601003046,1.66656157,131.79,131.63,1.0]
[1740601003346,2.66656157,131.79,131.67,1.0]
[1740601003547,1.5244,131.79,131.61,96.03377682]
[1740601003926,20.0,131.73,131.59,37.73812248]
[1740601004145,1.5539,131.71,131.59,38.73812248]
[1740601004333,1.5539,131.71,131.59,37.73812248]
[1740601004723,1.5539,131.71,131.52,37.75731166]
[1740601004924,1.5539,131.69,131.51,0.221]
[1740601005130,1.5539,131.69,131.52,37.75731166]
[1740601005331,1.5539,131.69,131.54,37.90616538]
[1740601005644,1.0,131.68,131.52,37.62469865]
[1740601005942,7.58760113,131.69,131.52,37.62469865]
[1740601006241,6.1007,131.7,131.61,1.0]
[1740601006440,6.1007,131.7,131.63,37.17890869]
[1740601006938,6.1007,131.7,131.61,38.11753537]
[1740601007123,141.42,131.72,131.66,21.0]
[1740601007323,127.78,131.72,131.69,37.19423332]
[1740601007636,21.3819,131.78,131.65,1.0]
[1740601007835,6.2219,131.78,131.7,1.0]
[1740601008044,15.42,131.84,131.75,1.0]
[1740601008243,15.42,131.84,131.76,1.0]
[1740601008546,15.42,131.84,131.77,1.0]
[1740601008734,10.61987096,131.9,131.83,1.0]
[1740601008933,117.55168828,131.99,131.81,1.0]
[1740601009138,47.66576834,131.98,131.85,0.98]
[1740601009437,47.66576834,131.98,131.9,20.0]
[1740601009438,51.56055306,131.98,131.9,20.0]
[1740601009746,37.63994735,132.06,131.91,20.0]
[1740601009944,37.9787265,132.07,131.92,20.98]
[1740601010122,120.53994735,132.06,131.95,0.98]
[1740601010321,120.53994735,132.06,131.96,0.98]
[1740601010527,37.9787265,132.07,131.96,1.0]
[1740601010722,0.063,132.0,131.96,1.0]
[1740601010937,0.063,132.0,131.9,38.74430028]
[1740601011141,3.87505995,131.99,131.94,37.54067498]
[1740601011333,0.063,132.0,131.93,37.58493076]
[1740601011523,0.063,132.0,131.93,38.58493076]
[1740601011724,51.92178216,132.08,131.89,37.49159516]
[1740601011953,6.26436717,132.09,131.89,37.49159516]
[1740601012130,82.9,132.12,131.93,38.56493076]
[1740601012331,82.9,132.12,131.96,37.34298585]
[1740601012525,3.77449809,132.04,131.98,37.93836236]
[1740601012749,5.34159809,132.04,131.92,37.95543585]
[1740601012953,5.34159809,132.04,131.9,38.35867128]
[1740601013158,5.34159809,132.04,131.93,1.0]
[1740601013362,6.26203839,132.1,131.97,1.0]
[1740601013536,6.26203839,132.1,131.98,39.30939303]
[1740601013752,3.72231257,132.11,132.0,37.91178463]
[1740601014259,3.72231257,132.11,131.99,37.89585738]
[1740601014446,3.72231257,132.11,132.0,37.91178463]
[1740601014640,3.79836386,132.03,131.99,43.48820348]
[1740601014836,3.79836386,132.03,131.94,37.31169654]
[1740601015035,3.79836386,132.03,131.92,38.87390916]
[1740601015355,3.79836386,132.03,131.89,154.1]
[1740601015356,3.79836386,132.03,131.9,37.07763242]
[1740601015554,3.72528913,131.99,131.89,1.0]
[1740601015760,3.72528913,131.99,131.88,1.0]
[1740601015945,3.72528913,131.99,131.91,1.0]
[1740601016144,3.72528913,131.99,131.92,1.0]
[1740601016459,3.84213259,132.01,131.88,1.0]
[1740601017040,3.84213259,132.01,131.82,2.9261208]
[1740601017041,3.8402296,131.93,131.82,1.9461208]
[1740601017236,20.0,131.91,131.77,37.34328219]
[1740601017452,3.8714386,131.84,131.76,83.96055797]
[1740601017768,20.0,131.91,131.78,1.0]
[1740601017946,3.88033637,131.88,131.78,1.98]
[1740601018144,3.88033637,131.88,131.81,1.0]
[1740601018348,0.14216157,131.87,131.77,1.0]
[1740601018552,0.14216157,131.87,131.75,16.4]
[1740601018741,0.14216157,131.83,131.75,16.4]
[1740601018937,0.14216157,131.83,131.74,37.27731231]
[1740601019136,0.14216157,131.83,131.74,38.27731231]
[1740601019348,0.14216157,131.83,131.76,0.98]
[1740601019553,0.14216157,131.83,131.78,1.0]
[1740601019839,3.88033637,131.88,131.79,1.0]
[1740601020166,3.88033637,131.88,131.8,1.0]
[1740601020351,0.14216157,131.87,131.8,1.0]
[1740601020656,8.1912,131.99,131.83,1.0]
[1740601020873,3.74735074,131.89,131.78,1.0]
[1740601021065,0.14216157,131.87,131.73,37.76874448]
[1740601021240,0.14216157,131.87,131.72,38.84524856]
[1740601021434,0.14216157,131.81,131.71,38.73756249]
[1740601021637,0.14216157,131.81,131.7,37.90021367]
[1740601021862,0.14216157,131.76,131.68,37.58347615]
[1740601022051,0.14216157,131.76,131.66,1.0]
[1740601022255,20.0,131.79,131.68,38.11920571]
[1740601022569,5.99179116,131.79,131.7,37.05592872]
[1740601022746,20.0,131.8,131.7,37.05592872]
[1740601022944,6.05784337,131.81,131.74,37.75161792]
[1740601023144,8.803,131.89,131.76,1.0]
[1740601023347,0.063,131.89,131.79,1.0]
[1740601023568,0.063,131.89,131.84,37.14128045]
[1740601023760,0.063,131.89,131.84,38.14128045]
[1740601023959,0.063,131.89,131.75,82.4]
[1740601023960,0.063,131.89,131.81,38.96171545]
[1740601024260,0.063,131.89,131.88,1.98]
[1740601024649,0.063,131.89,131.88,1.0]
[1740601024845,0.063,131.89,131.88,1.98]
[1740601025053,0.063,131.89,131.88,158.78]
[1740601025458,0.063,131.89,131.88,1.0]
[1740601025661,0.063,131.89,131.86,1.0]
[1740601025854,0.063,131.89,131.88,1.98]
[1740601026055,0.063,131.89,131.84,1.0]
[1740601026267,0.063,131.89,131.81,1.0]
[1740601026574,0.063,131.89,131.79,1.0]
[1740601026575,0.20516157,131.89,131.79,1.0]
[1740601026774,0.20516157,131.89,131.83,1.0]
[1740601027075,0.063,131.89,131.88,1.0]
[1740601027370,0.063,131.89,131.85,0.98]
[1740601027573,0.063,131.89,131.8,264.78]
[1740601027574,0.063,131.89,131.8,128.98]
[1740601027786,0.063,131.89,131.82,1.0]
[1740601028074,0.14216157,131.87,131.76,1.0]
[1740601028478,0.14216157,131.87,131.78,1.0]
[1740601028675,0.14216157,131.86,131.73,1.0]
[1740601028868,0.14216157,131.86,131.72,127.98]
[1740601029049,0.14216157,131.86,131.73,1.0]
[1740601029249,0.14216157,131.86,131.7,0.98]
[1740601029448,20.0,131.86,131.65,0.98]
[1740601029670,1.0,131.83,131.65,136.8]
[1740601029873,21.0,131.81,131.62,0.98]
[1740601030091,8.4791,131.8,131.64,0.98]
[1740601030391,8.4791,131.8,131.69,0.98]
[1740601030555,8.06,131.84,131.75,0.98]
[1740601030755,8.7328,131.87,131.74,0.98]
[1740601030957,8.7328,131.87,131.77,0.98]
[1740601031288,25.04828687,131.79,131.73,1.0]
[1740601031456,25.04828687,131.79,131.73,130.28779486]
[1740601031656,25.04828687,131.79,131.72,82.4]
[1740601031657,25.04828687,131.79,131.72,130.28779486]
[1740601031983,24.74828687,131.79,131.72,130.28779486]
[1740601032392,24.74828687,131.79,131.69,138.31619486]
[1740601032777,24.74828687,131.79,131.7,1.28432314]
[1740601032963,24.74828687,131.79,131.72,1.0]
[1740601033163,24.74828687,131.79,131.72,175.59464171]
[1740601033464,24.74828687,131.79,131.71,93.19464171]
[1740601033683,24.74828687,131.79,131.74,20.0]
[1740601033870,24.74828687,131.79,131.74,93.19464171]
[1740601034270,24.74828687,131.79,131.74,176.59464171]
[1740601034466,24.74828687,131.79,131.69,183.62304171]
[1740601034964,24.74828687,131.79,131.72,20.0]
[1740601035165,0.14216157,131.78,131.72,82.4]
[1740601035359,0.14216157,131.78,131.69,183.62304171]
[1740601035861,0.14216157,131.78,131.68,0.03]
[1740601036286,0.14216157,131.75,131.68,0.03]
[1740601036975,22.0972,131.76,131.68,0.03]
[1740601037199,1.0,131.72,131.61,1.9461208]
[1740601037367,1.0,131.7,131.61,1.9461208]
[1740601037571,1.0,131.67,131.54,0.03]
[1740601037803,1.0,131.69,131.54,0.03]
[1740601037985,1.0,131.73,131.54,0.03]
[1740601038293,1.39495093,131.73,131.54,93.22464171]
[1740601038506,1.0,131.7,131.54,0.03]
[1740601038672,20.0,131.63,131.53,0.06632208]
[1740601038995,20.0,131.63,131.44,184.31824171]
[1740601039168,1.0,131.61,131.41,221.25464171]
[1740601039372,5.49505093,131.61,131.41,128.06]
[1740601039585,1.39495093,131.6,131.41,128.06]
[1740601039794,20.0,131.58,131.42,2.0]
[1740601039977,20.0,131.58,131.41,221.25464171]
[1740601040181,3.1001,131.61,131.41,221.25464171]
[1740601040384,20.0,131.58,131.4,1.9461208]
[1740601040579,0.14216157,131.57,131.43,20.0]
[1740601040791,0.21324235,131.64,131.47,20.0]
[1740601041102,8.1646,131.66,131.5,1.0]
[1740601041308,8.1646,131.66,131.5,175.59464171]
[1740601041470,11.47108011,131.59,131.5,93.19464171]
[1740601041676,0.14216157,131.58,131.45,93.19464171]
[1740601041898,1.14216157,131.58,131.4,95.14076251]
[1740601042207,0.14216157,131.55,131.4,1.9461208]
[1740601042911,0.14216157,131.5,131.4,1.9461208]
[1740601044992,1.39495093,131.54,131.43,20.0]
[1740601045193,11.47108011,131.55,131.43,113.19464171]
[1740601045494,11.47108011,131.55,131.43,93.19464171]
[1740601045793,11.47108011,131.55,131.46,20.0]
[1740601045975,11.47108011,131.55,131.46,114.19464171]
[1740601046178,11.47108011,131.55,131.46,113.19464171]
[1740601046371,11.47108011,131.55,131.43,303.81464171]
[1740601046578,11.47108011,131.5,131.43,128.22]
[1740601046795,20.0,131.58,131.4,1.9461208]
[1740601047010,1.39495093,131.57,131.4,177.54076251]
[1740601047297,1.9728,131.63,131.44,1.56864628]
[1740601047500,1.9728,131.63,131.42,1.56864628]
[1740601047501,1.9728,131.63,131.42,221.43464171]
[1740601047714,24.74828687,131.49,131.42,128.24]
[1740601047893,24.74828687,131.49,131.4,95.17076251]
[1740601048214,24.74828687,131.49,131.43,20.0]
[1740601048412,24.74828687,131.49,131.45,0.14216157]
[1740601048574,24.74828687,131.49,131.45,175.59464171]
[1740601048975,24.74828687,131.49,131.48,20.0]
[1740601049279,24.74828687,131.49,131.48,113.19464171]
[1740601049479,22.55878687,131.49,131.48,197.16328799]
[1740601049690,11.50904908,131.64,131.53,1.42648471]
[1740601049895,11.50904908,131.64,131.55,1.0]
[1740601050202,11.50904908,131.64,131.59,0.14216157]
[1740601050397,11.50904908,131.64,131.61,1.28432314]
[1740601050600,11.50904908,131.64,131.58,20.0]
[1740601050800,11.50904908,131.64,131.6,0.14216157]
[1740601050984,11.50904908,131.64,131.61,0.56864628]
[1740601051184,9.66844908,131.64,131.63,21.71080785]
[1740601051404,46.03619635,131.68,131.63,175.59464171]
[1740601051905,46.03619635,131.68,131.66,20.0]
[1740601052079,0.063,131.78,131.67,1.42648471]
[1740601052281,0.063,131.78,131.7,21.14216157]
[1740601052505,0.063,131.78,131.72,0.42648471]
[1740601052688,0.063,131.78,131.7,93.19464171]
[1740601053181,0.85783843,131.73,131.65,93.19464171]
[1740601053386,0.28432314,131.72,131.59,0.14216157]
[1740601053593,3.78081925,131.75,131.62,20.0]
[1740601053792,0.063,131.78,131.63,0.42648471]
[1740601053993,0.85783843,131.76,131.66,20.0]
[1740601054202,0.14216157,131.72,131.61,93.19464171]
[1740601054391,0.14216157,131.75,131.61,93.19464171]
[1740601054608,0.063,131.78,131.65,0.42648471]
[1740601054807,0.063,131.78,131.68,20.14216157]
[1740601055012,0.28432314,131.77,131.68,113.19464171]
[1740601055202,0.28432314,131.77,131.68,93.19464171]
[1740601055203,1.14216157,131.77,131.68,93.19464171]
[1740601055386,1.14216157,131.77,131.63,0.42648471]
[1740601055387,0.14216157,131.77,131.63,0.42648471]
[1740601055587,0.063,131.78,131.66,20.28432314]
[1740601055808,0.063,131.78,131.7,0.28432314]
[1740601056016,0.063,131.78,131.73,20.0]
[1740601056190,0.063,131.78,131.76,20.0]
[1740601056390,0.063,131.78,131.76,113.19464171]
[1740601056589,0.063,131.78,131.77,2.0193239]
[1740601057001,0.063,131.78,131.74,93.19464171]
[1740601057618,0.063,131.78,131.75,1.73529349]
[1740601057829,0.063,131.89,131.82,0.42648471]
[1740601058115,0.063,131.89,131.8,128.16]
[1740601058290,0.063,131.89,131.83,20.0]
[1740601058494,0.063,131.89,131.83,156.94216157]
[1740601058696,0.063,131.89,131.83,156.8]
[1740601058923,0.063,131.89,131.84,2.01841466]
[1740601059116,0.063,131.89,131.87,20.0]
[1740601059430,0.063,131.89,131.88,0.71080785]
[1740601059602,0.063,131.92,131.91,0.14216157]
[1740601059800,0.063,131.92,131.91,350.60162516]
[1740601059997,46.03619635,132.02,131.96,0.14216157]
[1740601060217,45.53619635,132.02,131.99,20.0]
[1740601060713,45.53619635,132.02,131.98,0.42648471]
[1740601061096,45.53619635,132.02,132.01,20.0]
[1740601061295,12.74986798,132.1,132.01,20.0]
[1740601061496,2.5455,132.1,132.01,21.58980713]
[1740601061710,2.5455,132.1,132.01,21.5898765]
[1740601062012,0.85783843,132.09,132.01,158.3898765]
[1740601062215,0.85783843,132.05,131.92,136.8]
[1740601062418,1.14216157,132.02,131.92,136.8]
[1740601062712,3.91210006,132.03,131.91,16.4]
[1740601062713,13.94220006,132.03,131.91,16.4]
[1740601062890,0.28432314,132.02,131.88,136.8]
[1740601063094,0.28432314,132.0,131.88,136.8]
[1740601063293,0.85783843,131.97,131.87,16.4]
[1740601063517,0.85783843,131.94,131.87,16.4]
[1740601063702,0.85783843,131.91,131.84,128.0]
[1740601063903,0.85783843,131.94,131.84,128.0]
[1740601064096,0.28432314,131.93,131.84,128.0]
[1740601064296,3.42493843,131.95,131.84,128.0]
[1740601064518,0.28432314,131.93,131.84,128.0]
[1740601064727,2.5671,131.95,131.84,128.0]
[1740601064902,1.14216157,131.93,131.84,128.0]
[1740601065216,2.5671,131.95,131.77,153.16]
[1740601065217,0.85783843,131.92,131.77,153.16]
[1740601065418,0.85783843,131.9,131.78,16.36]
[1740601065600,0.85783843,131.86,131.78,16.36]
[1740601065799,0.28432314,131.88,131.75,127.98]
[1740601065800,0.28432314,131.83,131.75,127.98]
[1740601066102,0.85783843,131.79,131.7,16.38]
[1740601066294,0.85783843,131.78,131.7,16.38]
[1740601066495,0.85783843,131.76,131.7,16.38]
[1740601066694,3.49063843,131.8,131.7,16.38]
[1740601066893,0.85783843,131.78,131.7,16.38]
[1740601067113,2.6328,131.8,131.7,16.38]
[1740601067304,0.85783843,131.78,131.7,16.38]
[1740601067513,0.85783843,131.77,131.7,16.38]
[1740601067817,0.85783843,131.74,131.67,127.98]
[1740601067997,0.85783843,131.72,131.61,16.36]
[1740601068199,0.85783843,131.71,131.6,144.36]
[1740601068518,10.012,131.74,131.6,144.36]
[1740601068519,0.85783843,131.73,131.6,144.36]
[1740601068722,0.85783843,131.71,131.6,144.36]
[1740601069028,0.85783843,131.71,131.61,16.3]
[1740601069208,0.85783843,131.69,131.6,128.0]
[1740601069408,0.85783843,131.66,131.54,16.34]
[1740601069906,0.28432314,131.62,131.54,16.34]
[1740601070214,0.85783843,131.63,131.54,16.34]
[1740601070417,3.70556157,131.64,131.54,16.34]
[1740601070602,0.85783843,131.62,131.54,16.34]
[1740601070807,0.85783843,131.63,131.54,16.34]
[1740601071011,0.28432314,131.62,131.54,16.34]
[1740601071207,0.28432314,131.62,131.47,136.97216157]
[1740601071515,0.28432314,131.61,131.49,16.24]
[1740601071711,1.14216157,131.63,131.52,20.0]
[1740601071913,3.5634,131.64,131.52,20.0]
[1740601072109,0.85783843,131.62,131.5,136.8]
[1740601072311,3.42123843,131.64,131.51,1.59608294]
[1740601072542,2.5634,131.64,131.54,20.0]
[1740601073033,2.6139,131.72,131.57,0.42648471]
[1740601073236,2.6139,131.72,131.61,20.0]
[1740601073407,2.6139,131.72,131.62,1.59442799]
[1740601073608,0.85783843,131.7,131.61,20.0]
[1740601074023,2.6139,131.72,131.61,20.0]
[1740601074333,0.85783843,131.68,131.61,20.0]
[1740601074534,0.85783843,131.71,131.61,20.0]
[1740601074742,0.85783843,131.66,131.55,128.06]
[1740601074931,0.85783843,131.67,131.55,264.86]
[1740601075107,0.85783843,131.67,131.55,128.06]
[1740601075310,82.9,131.71,131.55,128.06]
[1740601075311,0.85783843,131.69,131.58,20.0]
[1740601075514,2.6139,131.72,131.59,0.28432314]
[1740601075736,3.47173843,131.72,131.62,20.0]
[1740601075950,2.6139,131.72,131.62,36.08]
[1740601076142,2.6139,131.72,131.64,0.28432314]
[1740601076318,2.6139,131.72,131.67,20.0]
[1740601076506,2.6139,131.72,131.67,156.8]
[1740601076913,0.85783843,131.8,131.67,156.8]
[1740601077135,0.85783843,131.74,131.65,128.12]
[1740601077352,1.14216157,131.73,131.65,128.12]
[1740601077554,0.85783843,131.72,131.65,128.12]
[1740601078059,0.85783843,131.7,131.62,16.06]
[1740601078227,0.85783843,131.67,131.58,128.12]
[1740601078651,0.85783843,131.7,131.58,264.92]
[1740601079158,0.85783843,131.68,131.58,264.92]
[1740601079333,0.85783843,131.68,131.58,128.12]
[1740601079658,0.28432314,131.71,131.61,20.0]
[1740601079829,0.85783843,131.73,131.61,156.8]
[1740601080035,1.0,131.75,131.62,1.59446533]
[1740601080355,0.85783843,131.72,131.62,136.8]
[1740601080558,0.85783843,131.76,131.62,219.48432314]
[1740601080726,83.75783843,131.78,131.66,20.0]
[1740601081061,82.9,131.78,131.66,156.8]
[1740601081226,0.85783843,131.76,131.66,156.8]
[1740601081426,86.33313843,131.81,131.67,1.87848124]
[1740601081623,82.9,131.8,131.7,20.0]
[1740601081831,0.85783843,131.74,131.63,152.7]
[1740601082047,0.85783843,131.78,131.66,20.0]
[1740601082243,0.85783843,131.77,131.66,156.8]
[1740601082529,2.5753,131.81,131.69,20.0]
[1740601082860,2.5753,131.81,131.72,20.28432314]
[1740601083067,3.43313843,131.81,131.71,15.84]
[1740601083239,2.5753,131.81,131.74,20.0]
[1740601083560,0.85783843,131.87,131.77,20.0]
[1740601083561,0.063,131.87,131.77,20.0]
[1740601083742,0.063,131.87,131.78,0.42648471]
[1740601083944,0.063,131.87,131.83,0.56864628]
[1740601084249,0.063,131.87,131.86,20.56864628]
[1740601084437,0.063,131.87,131.86,159.10208413]
[1740601084754,0.063,131.87,131.86,157.36864628]
[1740601085051,2.6034,131.98,131.87,0.42648471]
[1740601085263,2.6034,131.98,131.87,152.68216157]
[1740601085429,0.063,132.01,131.91,0.42648471]
[1740601085627,0.063,132.01,131.94,20.0]
[1740601085826,0.063,132.01,131.98,20.0]
[1740601086233,0.063,132.01,131.98,158.39031572]
[1740601086550,0.063,132.01,131.98,20.0]